Cogmind - Beta 13 @@@ ROGUE MODE // 2024.06.08 @ 02:56:52 Player: hanzu Result: Destroyed by B-75 Beast with Heavy Machine Gun Performance ------------- Evolutions (3) 1500 Regions Visited (15) 3000 Robots Destroyed (106) 530 Value Destroyed (4284) 4284 Prototype IDs (21) 420 Alien Tech Used (0) 0 Bonus (2402) 2402 TOTAL SCORE: 12136 Bonus ------- High Alert Combat Kills 381 Follower Combat Kills 282 Entered Garrisons 600 Used RIF Installer 1500 Met Data Miner 300 Friendly Fire -661 Cogmind --------- Core Integrity 0/700 Matter 203/300 Energy 99/100 System Corruption 1% Temperature Cool (0) Movement Core (50) Location -6/Proximity Caves Parts ------- > --- POWER (2) -------- (None) > --- PROPULSION (5) --- (None) > --- UTILITY (4) ------ (None) > --- WEAPON (2) ------- (None) > --- INVENTORY (5) ---- Improved Deuterium Engine Advanced Heat Sink Makeshift Terrain Scan Processor Relay Coupler [NC] (34) Gauss Rifle Peak State ------------ > --- POWER ------------ Micro Nuclear Core Angular Momentum Engine > --- PROPULSION ------- Armored Huge Wheel Armored Huge Wheel Cooled Aerolev Unit > --- UTILITY ---------- High-capacity Storage Unit Experimental ECM Suite Relay Coupler [NC] Relay Coupler [Grunt] > --- WEAPON ----------- Cooled Plasma Rifle Cooled Plasma Rifle > --- INVENTORY -------- Gravmag System Gravmag System Cooled Aerolev Unit Improved Heat Sink Cooling System High-capacity Matter Pod Visual Processing Unit Experimental Sensor Array Seismic Detector System Shield Authchip [R/NC] Authchip [R/Combat] Relay Coupler [NC] High-powered Tractor Beam Cooled Plasma Rifle Cooled Plasma Rifle Cooled Plasma Rifle Rocket Launcher Improved Datajack Remote Datajack [Rating: 65] Favorites ----------- Power Micro Nuclear Core Engine Ion Engine Power Core Micro Nuclear Core Propulsion Armored Huge Wheel Leg Aluminum Leg Wheel Armored Huge Wheel Hover Unit Airjet Flight Unit Xenon Bombardment Thruster Utility High-capacity Storage Unit Device Experimental Sensor Array Storage High-capacity Storage Unit Processor Improved Signal Interpreter Hackware System Shield Protection Hardened Medium Armor Plating Weapon Shotgun Energy Gun Lightning Gun Energy Cannon Plasma Cannon Ballistic Gun Shotgun Ballistic Cannon Assault Cannon Launcher EMP Blaster Special Weapon Remote Datajack Special Melee Weapon Improved Datajack Build | -11 -10 -10 -10 -9 -8 -8 -7 -7 -7 -7 -7 -7 -7 -7 -6 ------- Run | Yrd Mat Min Exi Min Mat Gar Fac Gar Fac Gar Fac Low Low Dat Pro Slots Evolved 6 | . . . . . 4 . 2 . . . . . . . . Power 1 | . . . . . . . 1 . . . . . . . . Propulsion 3 | . . . . . 2 . 1 . . . . . . . . Utility 2 | . . . . . 2 . . . . . . . . . . Weapon . | . . . . . . . . . . . . . . . . Parts Attached 114 | 6 9 . . . 21 9 26 13 1 1 24 . 2 . 2 Power 12 | 1 . . . . 2 2 5 . . . 2 . . . . Engine 5 | 1 . . . . 2 . 2 . . . . . . . . Core 7 | . . . . . . 2 3 . . . 2 . . . . Reactor . | . . . . . . . . . . . . . . . . Propulsion 30 | 2 4 . . . 7 . 5 4 1 . 7 . . . . Treads . | . . . . . . . . . . . . . . . . Leg 2 | 2 . . . . . . . . . . . . . . . Wheel 12 | . 2 . . . 6 . 4 . . . . . . . . Hover 14 | . 2 . . . 1 . 1 4 . . 6 . . . . Flight 2 | . . . . . . . . . 1 . 1 . . . . Utility 31 | 1 2 . . . 4 1 8 3 . 1 9 . . . 2 Device 17 | . 1 . . . 2 . 4 2 . 1 5 . . . 2 Storage 5 | 1 1 . . . . . 1 . . . 2 . . . . Processor 1 | . . . . . . . . . . . 1 . . . . Hackware 6 | . . . . . 1 . 3 1 . . 1 . . . . Protection 2 | . . . . . 1 1 . . . . . . . . . Artifact . | . . . . . . . . . . . . . . . . Weapon 41 | 2 3 . . . 8 6 8 6 . . 6 . 2 . . Energy Gun 14 | 1 . . . . 1 1 4 4 . . 3 . . . . Energy Cannon 1 | . . . . . . . 1 . . . . . . . . Ballistic Gun 11 | 1 3 . . . . 3 1 . . . 1 . 2 . . Ballistic Cannon 4 | . . . . . 4 . . . . . . . . . . Launcher 8 | . . . . . 3 1 . 2 . . 2 . . . . Special Weapon 1 | . . . . . . . 1 . . . . . . . . Impact Weapon . | . . . . . . . . . . . . . . . . Slashing Weapon . | . . . . . . . . . . . . . . . . Piercing Weapon . | . . . . . . . . . . . . . . . . Special Melee Weapon 2 | . . . . . . 1 1 . . . . . . . . Unidentified Prototypes 5 | . . . . . 1 . 4 . . . . . . . . Parts Lost 31 | . . . . . . 5 9 12 . . 1 . 1 . 3 Power 9 | . . . . . . 2 4 2 . . . . . . 1 Propulsion 11 | . . . . . . . 2 6 . . 1 . 1 . 1 Utility 3 | . . . . . . . . 3 . . . . . . . Weapon 8 | . . . . . . 3 3 1 . . . . . . 1 Highest Loss Streak 7 | . . . . . . 2 4 7 . . 1 . 1 . 3 To Critical Strikes . | . . . . . . . . . . . . . . . . Average Slot Usage (%) 85 | . 92 100 100 100 84 80 73 74 7 7 81 100 99 92 88 Engine 5 | . 14 14 14 14 8 4 1 4 . . . . . . . Core 6 | . . . . . . 4 9 6 . . 13 15 15 15 14 Leg 2 | . 19 . . . . . . . . . . . . . . Wheel 12 | . 6 28 28 28 22 18 18 9 . . . . . . . Hover 6 | . 1 . . . . . 1 9 . . 12 38 37 30 28 Flight 2 | . . . . . . . . . 7 7 13 . . . . Device 10 | . 7 14 14 14 10 9 5 6 . . 13 15 15 15 14 Storage 9 | . 14 14 14 14 9 9 7 6 . . 6 7 7 7 6 Processor 1 | . . . . . . . . . . . 5 7 7 7 6 Hackware 4 | . . . . . 8 9 13 11 . . . . . . . Protection 2 | . . . . . 7 8 2 . . . . . . . . Energy Gun 6 | . 4 . . . 7 6 5 14 . . 12 7 1 . . Ballistic Gun 9 | . 23 28 28 28 1 8 4 . . . . . 12 15 14 Ballistic Cannon 1 | . . . . . 8 3 . . . . . . . . . Naked Turns 8 | . . . . . . . . 5 . . . . . . 3 Heaviest Build 71 | 14 52 52 52 52 62 63 71 71 . . 41 41 46 46 46 Greatest Support 66 | 20 24 24 24 24 56 56 66 56 3 3 43 43 43 35 35 Greatest Overweight (x) 7 | 2 7 2 2 2 2 1 2 3 . . 3 . 1 1 1 Average Overweight (x) . | . 1 2 2 2 1 . . 1 . . 1 . . 1 . Largest Inventory Capacity 20 | 8 20 20 20 20 20 20 20 20 5 5 15 15 15 15 15 Average Capacity 16 | 7 17 20 20 20 20 20 20 19 5 5 8 15 15 15 14 Most Carried 20 | 2 20 20 20 20 20 20 20 20 4 4 9 15 15 15 15 Average Carried 15 | 1 11 19 20 20 19 19 19 18 4 3 7 11 14 15 14 Final Capacity 20 | 8 20 20 20 20 20 20 20 5 5 5 15 15 15 15 5 Final Carried 20 | 2 20 20 20 20 19 20 20 5 4 4 8 15 15 15 5 Class Distribution -------------------- 88% | Mutant 11% | Bothacker-Mutant Dominant Class ---------------- Mutant | -10/Materials Mutant | -10/Mines Mutant | -10/Exiles Mutant | -9/Mines Mutant | -8/Materials Mutant | -8/Garrison Mutant | -7/Factory Bothacker-Mutant | -7/Garrison Mutant | -7/Factory Mutant | -7/Garrison Mutant | -7/Factory Mutant | -7/Lower Caves Mutant | -7/Lower Caves Mutant | -7/Data Miner Mutant | -6/Proximity Caves Resources | -11 -10 -10 -10 -9 -8 -8 -7 -7 -7 -7 -7 -7 -7 -7 -6 ----------- Run | Yrd Mat Min Exi Min Mat Gar Fac Gar Fac Gar Fac Low Low Dat Pro Matter Collected 2742 | 153 222 92 234 56 465 503 406 140 . . 248 125 85 . 13 Remotely . | . . . . . . . . . . . . . . . . Salvage Created 3523 | . 260 92 . 117 507 830 844 314 . . 311 54 194 . . Parts 205 | . 16 5 . 10 38 48 49 13 . . 18 1 7 . . Haulers Intercepted . | . . . . . . . . . . . . . . . . Recyclers Shooed . | . . . . . . . . . . . . . . . . Parts Field Recycled . | . . . . . . . . . . . . . . . . Retrieved Matter . | . . . . . . . . . . . . . . . . Parts Self-Destructed 8 | . . . . . . . . . . . . 1 7 . . Prevented 3 | . . . . . . . . . . . . . 3 . . Kills | -11 -10 -10 -10 -9 -8 -8 -7 -7 -7 -7 -7 -7 -7 -7 -6 ------- Run | Yrd Mat Min Exi Min Mat Gar Fac Gar Fac Gar Fac Low Low Dat Pro Combat Hostiles Destroyed 85 | . 6 2 . 3 16 24 14 11 . . 6 . 3 . . Guns 46 | . 6 2 . 3 1 15 9 4 . . 3 . 3 . . Cannons 14 | . . . . . 6 7 1 . . . . . . . . AOE 24 | . . . . . 9 2 3 7 . . 3 . . . . Classes Destroyed 17 | . 4 . . 1 5 3 3 1 . . . . . . . Worker 4 | . . . . . 2 . 2 . . . . . . . . Builder 3 | . . . . . . . 1 . . . 2 . . . . Tunneler 2 | . . . . 1 1 . . . . . . . . . . Recycler 4 | . 1 . . . 1 . 2 . . . . . . . . Mechanic 2 | . . . . . 1 . 1 . . . . . . . . Operator 1 | . . . . . 1 . . . . . . . . . . Watcher 3 | . 2 . . . 1 . . . . . . . . . . Swarmer 25 | . 2 . . 1 10 8 1 . . . . . 3 . . Cutter 3 | . . . . . . . . 3 . . . . . . . Grunt 24 | . 4 2 . 2 4 4 . 5 . . 3 . . . . Brawler 3 | . . . . . . 2 . 1 . . . . . . . Duelist 2 | . . . . . . 1 1 . . . . . . . . Protector 1 | . . . . . . . 1 . . . . . . . . Sentry 9 | . . . . . 1 6 1 1 . . . . . . . Specialist 2 | . . . . . . . 2 . . . . . . . . Hunter 3 | . . . . . 1 . 1 1 . . . . . . . Programmer 14 | . . . . . . 3 8 . . . 3 . . . . Thug 1 | . . . . . 1 . . . . . . . . . . Best Kill Streak 11 | . 2 2 . 2 11 6 7 6 . . 5 . 3 . . Combat Bots Only 9 | . 2 2 . 2 9 6 5 6 . . 3 . 3 . . Max Kills in Single Turn 6 | . 1 1 . 1 6 2 5 2 . . 3 . 1 . . Gunslinging . | . . . . . . . . . . . . . . . . Exploded 4 | . . . . . 4 2 2 2 . . 1 . . . . Melee . | . . . . . . . . . . . . . . . . Uniques/NPCs Destroyed . | . . . . . . . . . . . . . . . . Combat | -11 -10 -10 -10 -9 -8 -8 -7 -7 -7 -7 -7 -7 -7 -7 -6 -------- Run | Yrd Mat Min Exi Min Mat Gar Fac Gar Fac Gar Fac Low Low Dat Pro Hostile Shots Fired 558 | . 20 9 . 13 73 102 165 110 . 6 23 2 11 . 24 Missed 153 | . 4 3 . 3 21 26 45 30 . 5 7 . 2 . 7 Damage Taken 5888 | . 178 77 . 116 719 1012 1680 1259 . 14 226 30 131 . 446 Core 1054 | . 49 . . 44 179 67 320 220 . . 46 . 12 . 117 Absorbed by Shields 285 | . . . . . . . 276 . . . 9 . . . . Ignored by Resistances 45 | . . . . . . 45 . . . . . . . . . Regen/Repaired (Parts) 323 | . . . . . 153 . 170 . . . . . . . . Core Remaining (%) 72 | 100 . . . 62 . 55 . . . . . . . . . Volleys Fired 293 | . 22 5 . 7 43 94 52 23 . . 20 1 16 . 10 Largest 2 | . 2 2 . 2 2 2 2 2 . . 2 1 2 . 2 Hottest 144 | . 70 46 . 46 100 100 144 144 . . 110 65 70 . 70 Shots Fired 504 | . 44 10 . 14 75 165 93 37 . . 21 1 23 . 21 Gun 398 | . 44 10 . 14 36 131 76 28 . . 14 1 23 . 21 Cannon 75 | . . . . . 35 32 8 . . . . . . . . Launcher 22 | . . . . . 4 2 . 9 . . 7 . . . . Special 9 | . . . . . . . 9 . . . . . . . . Kinetic 269 | . 31 10 . 14 44 106 29 . . . . . 14 . 21 Thermal 200 | . 13 . . . 27 57 53 28 . . 12 1 9 . . Explosive 15 | . . . . . 4 2 . 9 . . . . . . . Electromagnetic 11 | . . . . . . . 2 . . . 9 . . . . Robot Hit Streak 19 | . 14 3 . 7 9 18 17 12 . . 5 3 9 . 19 Robot Miss Streak 6 | . 4 4 . 2 4 3 4 6 . . 2 1 5 . 1 Penetration Max 1 | . . . . . . 1 . . . . . . . . . Secondary Targets 7 | . . 1 . 1 . 3 . 1 . . . . 1 . . Max Gunslinging Chain 1 | . . 1 . 1 . 1 . 1 . . . . 1 . . Shots Hit Robots 334 | . 33 7 . 9 44 94 68 22 . . 18 1 19 . 19 Core Hits 191 | . 17 5 . 5 29 38 27 23 . . 29 1 13 . 4 Critical Kills 3 | . . . . . . . . . . . . . 3 . . Critical Parts Destroyed 7 | . . . . 1 . 1 1 . . . . . 3 . 1 Critical Strikes 22 | . 2 . . 1 3 5 3 . . . . . 6 . 2 Burn 8 | . 2 . . . . 4 2 . . . . . . . . Destroy 11 | . . . . 1 . 1 1 . . . . . 6 . 2 Blast 3 | . . . . . 3 . . . . . . . . . . Melee Attacks 3 | . . . . . . . 3 . . . . . . . . Impact . | . . . . . . . . . . . . . . . . Slashing . | . . . . . . . . . . . . . . . . Piercing . | . . . . . . . . . . . . . . . . Sneak Attacks 3 | . . . . . . . 3 . . . . . . . . Combat Hostiles . | . . . . . . . . . . . . . . . . Follow-up Attacks . | . . . . . . . . . . . . . . . . Damage Inflicted 10073 | . 444 82 . 156 1966 2255 2679 1610 . . 555 13 170 . 143 Guns 5074 | . 444 82 . 156 399 1607 1139 666 . . 255 13 170 . 143 Cannons 1230 | . . . . . 569 500 161 . . . . . . . . Explosions 3769 | . . . . . 998 148 1379 944 . . 300 . . . . Melee . | . . . . . . . . . . . . . . . . Ramming . | . . . . . . . . . . . . . . . . Kinetic 3276 | . 330 82 . 156 677 1420 393 . . . . . 75 . 143 Thermal 3925 | . 114 . . . 544 687 1583 666 . . 223 13 95 . . Explosive 2509 | . . . . . 745 148 672 944 . . . . . . . Electromagnetic 363 | . . . . . . . 31 . . . 332 . . . . Impact . | . . . . . . . . . . . . . . . . Slashing . | . . . . . . . . . . . . . . . . Piercing . | . . . . . . . . . . . . . . . . Highest Corruption 8 | . . . . . . 4 2 8 8 8 8 1 1 1 1 Average Corruption 2 | . . . . . . 2 1 2 8 8 3 1 1 1 1 Corruption Purged 8 | . . . . . . . . . . . 8 . . . . Corruption Blocked . | . . . . . . . . . . . . . . . . Effects 38 | . . . . . . 7 3 5 . 2 16 2 2 . 1 Message Errors 6 | . . . . . . 2 . . . . 4 . . . . Matter Fused 12 | . . . . . . 1 2 2 . 2 5 . . . . Heat Flow Errors 2 | . . . . . . . . 1 . . 1 . . . . Energy Discharges 7 | . . . . . . . . . . . 4 1 2 . . Parts Fused 2 | . . . . . . 1 . 1 . . . . . . . Data Loss (minor) 5 | . . . . . . 1 . 1 . . 2 1 . . . Data Loss (major) 1 | . . . . . . . 1 . . . . . . . . Misfires 3 | . . . . . . 2 . . . . . . . . 1 Overload Shots 16 | . . . . . . . 2 14 . . . . . . . Effects 1 | . . . . . . . . 1 . . . . . . . Energy Bleed 1 | . . . . . . . . 1 . . . . . . . Overflow Damage 357 | . . . . . 15 9 329 4 . . . . . . . Projectiles 26 | . . . . . 10 9 7 . . . . . . . . Explosions 331 | . . . . . 5 . 322 4 . . . . . . . Melee . | . . . . . . . . . . . . . . . . Knockbacks 8 | . . . . . 5 3 . . . . . . . . . Impact . | . . . . . . . . . . . . . . . . Kinetic 8 | . . . . . 5 3 . . . . . . . . . Secondary . | . . . . . . . . . . . . . . . . Self-Inflicted Damage 783 | . . . . . 73 17 479 214 . . . . . . . Shots 14 | . . . . . 1 1 7 5 . . . . . . . Rammed . | . . . . . . . . . . . . . . . . Targets Rammed . | . . . . . . . . . . . . . . . . Kicked . | . . . . . . . . . . . . . . . . Crushed . | . . . . . . . . . . . . . . . . Highest Temperature 412 | . 90 11 . 4 412 21 60 192 . . 210 50 375 . 126 Average Temperature 78 | . 33 6 . 2 101 8 25 57 . . 64 24 162 . 69 Received Heat Transfer 1002 | . 87 42 . 45 171 306 102 141 . . 48 . . . 60 Effects 4 | . . . . . 2 . . . . . . . 2 . . Interference 2 | . . . . . . . . . . . . . 2 . . Short Circuit 1 | . . . . . 1 . . . . . . . . . . Damage (minor) 1 | . . . . . 1 . . . . . . . . . . Siege Activations . | . . . . . . . . . . . . . . . . Robots Corrupted . | . . . . . . . . . . . . . . . . Combat Hostiles . | . . . . . . . . . . . . . . . . Parts Fried 2 | . . . . . . . . . . . 2 . . . . Impact Corruptions . | . . . . . . . . . . . . . . . . Robots Melted 1 | . . . . . . . 1 . . . . . . . . Combat Hostiles 1 | . . . . . . . 1 . . . . . . . . Parts Melted 14 | . 4 . . . 1 1 8 . . . . . . . . Heat Transferred 6138 | . 481 . . . 779 1604 2010 879 . . 245 15 125 . . Parts Sabotaged . | . . . . . . . . . . . . . . . . Parts Stolen . | . . . . . . . . . . . . . . . . Parts Stripped . | . . . . . . . . . . . . . . . . Power Chain Reactions 2 | . . . . . . . 1 . . . 1 . . . . Alert | -11 -10 -10 -10 -9 -8 -8 -7 -7 -7 -7 -7 -7 -7 -7 -6 ------- Run | Yrd Mat Min Exi Min Mat Gar Fac Gar Fac Gar Fac Low Low Dat Pro Peak Influence 1022 | . 182 72 . 202 504 1022 621 624 290 203 142 . . . . Initial 536 | . . 22 . . . 183 536 260 290 203 106 . . . . Average 243 | . 64 70 . 43 291 693 345 456 290 203 65 . . . . Maximum Alert Level 3 | . . . . 1 2 3 2 2 1 1 . . . . . Low Security (%) 59 | 100 100 100 . 97 28 . 33 . . . 100 . . . . Level 1 16 | . . . . 2 52 14 18 35 100 100 . . . . . Level 2 18 | . . . . . 19 35 47 64 . . . . . . . Level 3 6 | . . . . . . 49 . . . . . . . . . Level 4 . | . . . . . . . . . . . . . . . . Level 5 . | . . . . . . . . . . . . . . . . High Security . | . . . . . . . . . . . . . . . . Max Security . | . . . . . . . . . . . . . . . . Squads Dispatched 12 | . 1 . . 1 3 . 2 . . . 5 . . . . Investigation 4 | . . . . 1 1 . . . . . 2 . . . . Extermination 4 | . . . . . . . 2 . . . 2 . . . . Reinforcement 4 | . 1 . . . 2 . . . . . 1 . . . . Assault . | . . . . . . . . . . . . . . . . Garrison . | . . . . . . . . . . . . . . . . Intercept . | . . . . . . . . . . . . . . . . Searches Triggered . | . . . . . . . . . . . . . . . . Construction Impeded 1 | . . . . . . . . . . . 1 . . . . Haulers Reinforced . | . . . . . . . . . . . . . . . . Active Scanning Responses . | . . . . . . . . . . . . . . . . Cargo Convoy Interrupts 1 | . . . . . . . 1 . . . . . . . . Stealth | -11 -10 -10 -10 -9 -8 -8 -7 -7 -7 -7 -7 -7 -7 -7 -6 --------- Run | Yrd Mat Min Exi Min Mat Gar Fac Gar Fac Gar Fac Low Low Dat Pro Distress Signals 2 | . . . . . 2 . . . . . . . . . . Communications Jammed . | . . . . . . . . . . . . . . . . Distress Signals . | . . . . . . . . . . . . . . . . Times Spotted 134 | . 13 2 . 7 29 24 29 15 1 2 7 1 3 . 1 Peak Tracking Total 10 | . 2 2 . 3 5 4 10 6 1 2 3 1 3 . 1 Tactical Retreats 2 | . 1 . . . . . 1 . . . . . . . . Traps | -11 -10 -10 -10 -9 -8 -8 -7 -7 -7 -7 -7 -7 -7 -7 -6 ------- Run | Yrd Mat Min Exi Min Mat Gar Fac Gar Fac Gar Fac Low Low Dat Pro Traps Triggered 9 | . . . . . 1 3 . 3 . . 2 . . . . Indirectly 1 | . . . . . . . . . . . 1 . . . . Trap Hack Attempts 6 | . . . . . . 6 . . . . . . . . . Triggered . | . . . . . . . . . . . . . . . . Disarmed 1 | . . . . . . 1 . . . . . . . . . Reprogrammed . | . . . . . . . . . . . . . . . . Reused . | . . . . . . . . . . . . . . . . Traps Extracted . | . . . . . . . . . . . . . . . . Installed . | . . . . . . . . . . . . . . . . Triggered 2 | . . . . . . . . . . . . . 2 . . Machines | -11 -10 -10 -10 -9 -8 -8 -7 -7 -7 -7 -7 -7 -7 -7 -6 ---------- Run | Yrd Mat Min Exi Min Mat Gar Fac Gar Fac Gar Fac Low Low Dat Pro Machines Disabled 16 | . . . . . 1 3 11 1 . . . . . . . Max in Single Turn 7 | . . . . . 1 1 7 1 . . . . . . . Garrison Access 1 | . . . . . . . . . . . 1 . . . . Garrison Relay 4 | . . . . . . 3 . 1 . . . . . . . Machines Repaired . | . . . . . . . . . . . . . . . . Machines Dismantled . | . . . . . . . . . . . . . . . . Machines Sabotaged . | . . . . . . . . . . . . . . . . Overloaded Fab Kills . | . . . . . . . . . . . . . . . . Hacking | -11 -10 -10 -10 -9 -8 -8 -7 -7 -7 -7 -7 -7 -7 -7 -6 --------- Run | Yrd Mat Min Exi Min Mat Gar Fac Gar Fac Gar Fac Low Low Dat Pro Machines Accessed 43 | . 8 . . 1 10 3 5 2 1 1 8 . . 4 . Terminals 23 | . 6 . . . 6 3 3 2 . 1 2 . . . . Fabricators 2 | . . . . . . . . . . . 2 . . . . Repair Stations 2 | . . . . . 1 . 1 . . . . . . . . Recycling Units 4 | . 2 . . . 1 . . . . . 1 . . . . Scanalyzers 3 | . . . . . 1 . . . . . 2 . . . . Garrison Access 4 | . . . . . 1 . 1 . 1 . 1 . . . . Total Hacks 149 | . 25 . . 1 44 12 10 3 1 2 22 . . 29 . Successful 92 | . 13 . . 1 29 3 3 . 1 . 13 . . 29 . Failed 56 | . 11 . . . 15 9 7 3 . 2 9 . . . . Catastrophic 11 | . 1 . . . 3 . 4 1 . 1 1 . . . . Database Lockouts 1 | . 1 . . . . . . . . . . . . . . Manual 44 | . 15 . . . 15 4 3 . . . 7 . . . . Terminals 69 | . 21 . . . 21 12 5 3 . 2 5 . . . . Fabricators 9 | . . . . . . . . . . . 9 . . . . Repair Stations 15 | . . . . . 11 . 4 . . . . . . . . Recycling Units 8 | . 4 . . . 2 . . . . . 2 . . . . Scanalyzers 14 | . . . . . 9 . . . . . 5 . . . . Garrison Access 4 | . . . . . 1 . 1 . 1 . 1 . . . . Terminal Hacks 52 | . 10 . . 1 7 2 . . . . 3 . . 29 . Record 11 | . . . . . . . . . . . . . . 11 . Part Schematic 12 | . . . . . 1 . . . . . 1 . . 10 . Robot Schematic 5 | . . . . . . . . . . . . . . 5 . Robot Analysis 5 | . 2 . . . 3 . . . . . . . . . . Prototype ID Bank 5 | . 1 . . . 1 . . . . . . . . 3 . Open Door 1 | . . . . 1 . . . . . . . . . . . Branch Access Points 1 | . . . . . . . . . . . 1 . . . . Emergency Access Points 1 | . . . . . . 1 . . . . . . . . . Terminal Index 2 | . 1 . . . 1 . . . . . . . . . . Scanalyzer Index 1 | . 1 . . . . . . . . . . . . . . Unreport Threat 2 | . 2 . . . . . . . . . . . . . . Locate Traps 2 | . 2 . . . . . . . . . . . . . . Zone Layout 3 | . 1 . . . 1 . . . . . 1 . . . . Security Stations 1 | . . . . . . 1 . . . . . . . . . Fabricator Hacks 4 | . . . . . . . . . . . 4 . . . . Network Status 1 | . . . . . . . . . . . 1 . . . . Load Schematic 2 | . . . . . . . . . . . 2 . . . . Build 1 | . . . . . . . . . . . 1 . . . . Repair Station Hacks 11 | . . . . . 9 . 2 . . . . . . . . Scan Component 6 | . . . . . 5 . 1 . . . . . . . . Repair 5 | . . . . . 4 . 1 . . . . . . . . Recycling Unit Hacks . | . . . . . . . . . . . . . . . . Scanalyzer 11 | . . . . . 8 . . . . . 3 . . . . Insert Component 6 | . . . . . 4 . . . . . 2 . . . . Analyze 5 | . . . . . 4 . . . . . 1 . . . . Garrison Access Hacks 4 | . . . . . 1 . 1 . 1 . 1 . . . . Unlock Access 3 | . . . . . 1 . 1 . 1 . . . . . . Seal Access 1 | . . . . . . . . . . . 1 . . . . Unauthorized Hacks 10 | . 3 . . . 4 1 . . . . 2 . . . . Terminals 7 | . 2 . . . 3 1 . . . . 1 . . . . Track 1 | . . . . . 1 . . . . . . . . . . Botnet 5 | . 1 . . . 2 1 . . . . 1 . . . . Operators 1 | . 1 . . . . . . . . . . . . . . Fabricators 1 | . . . . . . . . . . . 1 . . . . Recompile 1 | . . . . . . . . . . . 1 . . . . Repair Stations . | . . . . . . . . . . . . . . . . Recycling Units 2 | . 1 . . . 1 . . . . . . . . . . Recyclers 2 | . 1 . . . 1 . . . . . . . . . . Scanalyzers . | . . . . . . . . . . . . . . . . Garrison Access . | . . . . . . . . . . . . . . . . Data Cores Recovered . | . . . . . . . . . . . . . . . . Used . | . . . . . . . . . . . . . . . . Hacking Detections 31 | . 5 . . . 9 3 3 2 1 1 7 . . . . Full Trace Events 5 | . 1 . . . . 2 . 1 . . 1 . . . . Feedback Events 1 | . . . . . . 1 . . . . . . . . . Corruption 1 | . . . . . . 1 . . . . . . . . . Feedback Blocked . | . . . . . . . . . . . . . . . . Robot Schematics Acquired 5 | . . . . . . . . . . . . . . 5 . Robots Built . | . . . . . . . . . . . . . . . . Authchips . | . . . . . . . . . . . . . . . . Time . | . . . . . . . . . . . . . . . . Total Robot Build Rating . | . . . . . . . . . . . . . . . . Part Schematics Acquired 16 | . . . . . 4 . . . . . 2 . . 10 . Parts Built 2 | . . . . . . . . . . . 2 . . . . Authchips 1 | . . . . . . . . . . . 1 . . . . Time 106 | . . . . . . . . . . . 106 . . . . Total Part Build Rating 12 | . . . . . . . . . . . 12 . . . . Parts Repaired 5 | . . . . . 4 . 1 . . . . . . . . Time 338 | . . . . . 294 . 44 . . . . . . . . Parts Recycled . | . . . . . . . . . . . . . . . . Recycled Matter . | . . . . . . . . . . . . . . . . Retrieved Matter . | . . . . . . . . . . . . . . . . Retrieved Components . | . . . . . . . . . . . . . . . . Parts Scanalyzed 5 | . . . . . 3 . . . . . 2 . . . . Part Schematics Acquired 4 | . . . . . 3 . . . . . 1 . . . . Parts Damaged 2 | . . . . . 1 . . . . . 1 . . . . Bothacking | -11 -10 -10 -10 -9 -8 -8 -7 -7 -7 -7 -7 -7 -7 -7 -6 ------------ Run | Yrd Mat Min Exi Min Mat Gar Fac Gar Fac Gar Fac Low Low Dat Pro Used RIF Installer 3 | . . . . . . 2 . . . 1 . . . . . Coupler Efficiency 1 | . . . . . . 1 . . . . . . . . . Alert ID Control 1 | . . . . . . . . . . 1 . . . . . Robots Hacked 6 | . . . . . . . 6 . . . . . . . . Non-combat 5 | . . . . . . . 5 . . . . . . . . Combat 1 | . . . . . . . 1 . . . . . . . . Robot Hacks Applied 11 | . . . . . . . 11 . . . . . . . . parse_system 1 | . . . . . . . 1 . . . . . . . . no_distress 1 | . . . . . . . 1 . . . . . . . . find_chute 1 | . . . . . . . 1 . . . . . . . . purge_threat 4 | . . . . . . . 4 . . . . . . . . map_route 1 | . . . . . . . 1 . . . . . . . . formatsys_low 1 | . . . . . . . 1 . . . . . . . . formatsys_high 2 | . . . . . . . 2 . . . . . . . . Relay Couplers Released 17 | . . . . . . 12 . 5 . . . . . . . Machine Destruction 17 | . . . . . . 12 . 5 . . . . . . . Attached 4 | . . . . . . . 3 1 . . . . . . . Fabnet Peak Effective % . | . . . . . . . . . . . . . . . . Robots Rewired 1 | . . . . . . . 1 . . . . . . . . Allies Hacked . | . . . . . . . . . . . . . . . . Hacks Repelled . | . . . . . . . . . . . . . . . . Allies | -11 -10 -10 -10 -9 -8 -8 -7 -7 -7 -7 -7 -7 -7 -7 -6 -------- Run | Yrd Mat Min Exi Min Mat Gar Fac Gar Fac Gar Fac Low Low Dat Pro Total Allies 10 | . . 5 . . . . 4 . . . . . . . 1 Largest Group 5 | . . 5 5 3 3 . 2 . . . . . . . 1 Highest-Rated Group 122 | . . 81 81 40 40 . 122 . . . . . . . 96 Highest-Rated Ally 107 | . . 31 31 16 16 . 107 . . . . . . . 96 Total Orders 1 | . . . . . . . 1 . . . . . . . . DROP 1 | . . . . . . . 1 . . . . . . . . Ally Attacks 69 | . . . . 12 41 . 7 . . . . . . . 9 Total Damage 1136 | . . . . 153 448 . 276 . . . . . . . 259 Kills 13 | . . . . 4 8 . 1 . . . . . . . . Allies Corrupted 1 | . . . . . . . 1 . . . . . . . . Allies Melted . | . . . . . . . . . . . . . . . . Intel | -11 -10 -10 -10 -9 -8 -8 -7 -7 -7 -7 -7 -7 -7 -7 -6 ------- Run | Yrd Mat Min Exi Min Mat Gar Fac Gar Fac Gar Fac Low Low Dat Pro Robot Analysis Total 5 | . 2 . . . 3 . . . . . . . . . . Derelict Logs Recovered 5 | . . 1 . 1 . . . . . . . 1 1 . 1 Drone Launches . | . . . . . . . . . . . . . . . . Drone Recoveries . | . . . . . . . . . . . . . . . . Exploration | -11 -10 -10 -10 -9 -8 -8 -7 -7 -7 -7 -7 -7 -7 -7 -6 ------------- Run | Yrd Mat Min Exi Min Mat Gar Fac Gar Fac Gar Fac Low Low Dat Pro Turns Passed 8581 | 45 1040 386 204 550 1279 902 1180 357 24 55 1612 180 407 85 275 Spaces Moved 5835 | 28 500 281 171 436 733 508 938 195 65 120 852 365 355 79 209 Core 25 | 5 . . . . . . . 13 . . . . . . 7 Treads . | . . . . . . . . . . . . . . . . Legs 324 | 23 301 . . . . . . . . . . . . . . Wheels 3393 | . 179 281 171 436 733 508 938 147 . . . . . . . Hover 1573 | . 20 . . . . . . 35 . . 517 365 355 79 202 Flight 520 | . . . . . . . . . 65 120 335 . . . . Fastest Speed 35 | 50 120 120 120 120 105 100 93 50 35 35 35 44 44 108 50 Average Speed 107 | 122 173 120 120 120 112 112 99 119 35 35 106 44 86 108 106 Slowest Speed 480 | 190 480 120 120 120 130 115 130 216 35 35 155 44 108 108 108 Overloaded Moves . | . . . . . . . . . . . . . . . . Propulsion Burnouts . | . . . . . . . . . . . . . . . . Robots Hopped 1 | . . . . . . . . . 1 . . . . . . Cave-ins Triggered . | . . . . . . . . . . . . . . . . Exploration Rate (%) 47 | 3 82 72 49 97 51 75 20 40 3 29 16 60 63 68 36 Regions Visited 15 Branch Regions 7 Pre-discovered Areas 3 | . . 1 . 1 . . . . . . . . . 1 . Known Exits Taken 7 | . . . . . 1 . 1 . 1 . 1 1 1 1 . Unknown Exits Taken 5 | 1 1 1 1 1 . . . . . . . . . . . Scrap Searched 5 | . . . . 1 . . . . . . . 3 . . 1 Spaces Dug . | . . . . . . . . . . . . . . . . Terrain Destroyed 161 | . . . . . 50 18 43 47 . . 1 . 2 . . Melee . | . . . . . . . . . . . . . . . . Projectile 10 | . . . . . 4 2 . 4 . . . . . . . AOE 149 | . . . . . 46 16 43 43 . . 1 . . . . Terrain Rammed . | . . . . . . . . . . . . . . . . Walls Destroyed . | . . . . . . . . . . . . . . . . Machines Disabled . | . . . . . . . . . . . . . . . . Actions | -11 -10 -10 -10 -9 -8 -8 -7 -7 -7 -7 -7 -7 -7 -7 -6 --------- Run | Yrd Mat Min Exi Min Mat Gar Fac Gar Fac Gar Fac Low Low Dat Pro Total 7647 | 35 629 321 170 449 1115 677 1091 281 64 132 1540 383 438 78 244 Wait 1178 | . 67 30 . 7 288 30 33 15 . 12 606 9 62 . 19 Move 5815 | 27 499 280 170 435 732 506 937 193 62 118 851 364 354 78 209 Hop 1 | . . . . . . . . . 1 . . . . . . Pick Up 90 | 2 20 3 . . 12 10 14 3 . . 15 7 2 . 2 Fast Attach 52 | 6 9 . . . 8 2 11 1 . . 15 . . . . Attach 36 | . . . . . 6 4 10 8 1 1 4 . 2 . . Detach 8 | . 2 . . . 1 . 3 1 . 1 . . . . . Swap 26 | . . . . . 7 3 5 4 . . 5 . . . 2 Drop 68 | . 10 3 . . 18 6 10 4 . . 13 . 2 . 2 Fire 293 | . 22 5 . 7 43 94 52 23 . . 20 1 16 . 10 Melee 3 | . . . . . . . 3 . . . . . . . . Ram . | . . . . . . . . . . . . . . . . Kick . | . . . . . . . . . . . . . . . . Crush . | . . . . . . . . . . . . . . . . Escape Stasis 56 | . . . . . . 16 . 29 . . 11 . . . . Rewire 15 | . . . . . . . 13 . . . . 2 . . . Trap 6 | . . . . . . 6 . . . . . . . . . Miscellaneous . | . . . . . . . . . . . . . . . . Route ------- -11/Scrapyard -10/Materials (discovered 3 exits: [*Mat x2] / [*Min]) -10/Mines (discovered 3 exits: [*Mat x2] / [*Exi]) -10/Exiles -9/Mines (discovered 2 exits: *Mat x2) -8/Materials (discovered 3 exits: *Fac / [*Sto] / Gar) -8/Garrison -7/Factory (discovered 2 exits: *Low / Gar) -7/Garrison -7/Factory -7/Garrison -7/Factory (discovered 2 exits: *Low x2) -7/Lower Caves -7/Lower Caves (discovered 2 exits: *Fac / *Dat) -7/Data Miner -6/Proximity Caves (discovered 1 exit: Fac) History --------- Turn | Location | Event 17 | -11/Scrapyard | Discovered new exit (range 15) 46 | -11/Scrapyard | Entered Materials 148 | -10/Materials | Discovered new exit (range 15) 274 | -10/Materials | Central database locked down 292 | -10/Materials | Discovered new exit (range 16) 308 | -10/Materials | Build established: Mutant 983 | -10/Materials | Discovered new exit (range 4) 1086 | -10/Materials | Entered Mines 1175 | -10/Mines | Learned location of Zion (-6) 1179 | -10/Mines | Discovered new exit (range 8) 1262 | -10/Mines | Discovered new exit (range 10) 1276 | -10/Mines | Assisted by bots powering up and referring to "LRC-V3" 1293 | -10/Mines | Found a damaged Exp. Sensor Array with a note attached 1296 | -10/Mines | Found Prototype Device 1435 | -10/Mines | Deemed a non-threat by the Exiles lab entrance 1436 | -10/Mines | Discovered new exit (range 5) 1472 | -10/Mines | Entered Exiles 1472 | -10/Exiles | Accompanied by 5 allies 1501 | -10/Exiles | Met 8R-AWN 1502 | -10/Exiles | Led the pair of lost Derelicts to a safe place 1523 | -10/Exiles | Met EX-HEX 1568 | -10/Exiles | Met EX-DEC 1662 | -10/Exiles | Discovered new exit (range 14) 1676 | -10/Exiles | Entered Mines 1676 | -9/Mines | Accompanied by 3 allies 1762 | -9/Mines | A weapon hastily lodged in a ceiling crevice suddenly fell to the ground 1868 | -9/Mines | Discovered new exit (range 9) 1884 | -9/Mines | Met a Derelict shopkeep closing up shop 1944 | -9/Mines | Received a Rocket Launcher from a helpful Derelict 1998 | -9/Mines | Discovered new exit (range 6) 2226 | -9/Mines | Entered Materials 2226 | -8/Materials | Accompanied by 3 allies 2226 | -8/Materials | Evolved 4 slots: Propulsion x2, Utility x2 2226 | -8/Materials | Discovered new exit (range 8) 2653 | -8/Materials | Repaired Gauss Rifle 2672 | -8/Materials | Discovered new exit (range 10) 2813 | -8/Materials | Destroyed 9 combat bots 2861 | -8/Materials | Identified Exp. Sensor Array 3156 | -8/Materials | Repaired Broken Exp. Sensor Array 3218 | -8/Materials | Repaired Broken Lgt. Deuterium Engine 3410 | -8/Materials | Repaired Broken Arm. Huge Wheel 3504 | -8/Materials | Identified exit to Garrison 3505 | -8/Materials | Entered Garrison 3512 | -8/Garrison | Learned Factory security intel 3701 | -8/Garrison | Triggered checkpoint 3730 | -8/Garrison | Garrison Relay disabled 3851 | -8/Garrison | Installed Relay Interface Framework 3903 | -8/Garrison | Triggered checkpoint 3905 | -8/Garrison | Triggered checkpoint 3955 | -8/Garrison | Triggered checkpoint 3967 | -8/Garrison | Garrison Relay disabled 4091 | -8/Garrison | Triggered checkpoint 4215 | -8/Garrison | Triggered checkpoint 4218 | -8/Garrison | Discovered new exit (range 13) 4267 | -8/Garrison | Triggered checkpoint 4334 | -8/Garrison | Expanded RIF knowledge: Coupler Efficiency 4407 | -8/Garrison | Entered Factory 4407 | -7/Factory | Evolved 2 slots: Power x1, Propulsion x1 4463 | -7/Factory | Build established: Bothacker-Mutant 4742 | -7/Factory | Repaired Arm. Huge Wheel? 4981 | -7/Factory | Lost 4 parts (1p1n2w) 4981 | -7/Factory | Discovered new exit (range 6) 5244 | -7/Factory | Build established: Mutant 5267 | -7/Factory | Cargo convoy interrupted 5313 | -7/Factory | Lost 3 allies 5321 | -7/Factory | Lost 3 parts (2p1n) 5329 | -7/Factory | Found Prototype Device 5329 | -7/Factory | Identified Exp. ECM Suite 5577 | -7/Factory | Identified exit to Garrison 5587 | -7/Factory | Entered Garrison 5607 | -7/Garrison | Triggered checkpoint 5639 | -7/Garrison | Garrison Relay disabled 5709 | -7/Garrison | Triggered checkpoint 5812 | -7/Garrison | Core integrity fell below 50% 5870 | -7/Garrison | Lost 5 parts (1p3n1u) 5888 | -7/Garrison | Discovered new exit (range 8) 5939 | -7/Garrison | Released all parts (3) 5944 | -7/Garrison | Entered Factory 5968 | -7/Factory | Identified exit to Garrison 5968 | -7/Factory | Entered Garrison 5970 | -7/Garrison | Lost 7 parts (1p3n2u1w) 5982 | -7/Garrison | Expanded RIF knowledge: Alert ID Control 6009 | -7/Garrison | Triggered checkpoint 6019 | -7/Garrison | Discovered new exit (range 12) 6023 | -7/Garrison | Entered Factory 6383 | -7/Factory | Identified exit to Lower Caves 6891 | -7/Factory | Fabricated Hyp. Coil Gun (x2) 6947 | -7/Factory | Core integrity fell below 20% 7635 | -7/Factory | Entered Lower Caves 7774 | -7/Lower Caves | Learned Factory stockpile data 7813 | -7/Lower Caves | Discovered new exit (range 6) 7815 | -7/Lower Caves | Identified exit to Lower Caves 7815 | -7/Lower Caves | Entered another Lower Caves area 7818 | -7/Lower Caves | Discovered new exit (range 9) 8073 | -7/Lower Caves | Identified exit to Data Miner 8222 | -7/Lower Caves | Entered Data Miner 8222 | -7/Data Miner | Discovered new exit (range 6) 8243 | -7/Data Miner | Met Data Miner 8266 | -7/Data Miner | Learned location of Section 7 (-2) 8266 | -7/Data Miner | Acquired the access code to Warlord's prototype stash 8283 | -7/Data Miner | Received God Mode back door access code from Data Miner 8306 | -7/Data Miner | Identified exit to Proximity Caves 8307 | -7/Data Miner | Entered Proximity Caves 8443 | -6/Proximity Caves | Identified exit to Factory 8465 | -6/Proximity Caves | Spotter reported a threat 8521 | -6/Proximity Caves | Spotted B-75 Beast 8524 | -6/Proximity Caves | Escorted by Enhanced Grunt 8579 | -6/Proximity Caves | Released all parts (9) 8582 | -6/Proximity Caves | Destroyed by B-75 Beast with Heavy Machine Gun Last Messages --------------- 08557_ Enhanced Grunt destroyed. 08557_ HV Slug penetrates B-75 Beast. 08561_ Dropped Great Maul. 08562_ Acquired Prototype Energy Cannon. 08566_ Knocked back. 08566_ Airjet destroyed. 08569_ HV Slug penetrates B-75 Beast. 08569_ Mic. Nuclear Core destroyed. 08571_ HV Slug penetrates B-75 Beast. 08579_ Hyp. Coil Gun destroyed. 08579_ Knocked back. 08579_ Released Hyp. Coil Gun. 08579_ Released Lrg. Storage Unit. 08579_ Released Gravmag System. 08579_ Released Mic. Nuclear Core. 08579_ Released Imp. Signal Interpreter. 08579_ Released Gravmag System. 08579_ Released Coolant Injector. 08579_ Released Weapon Cycler. 08580_ Acquired 3 matter. Map ----- +----------------------------------------------------+ | ?????????????????????????????????????????????????? | | ?????????????????????????????????????????????????? | | ?????????????????????????????????????????????????? | | ?????????????????????????????????????????????????? | | ?????????????????????????????????????????????????? | | ?????????????????????????????????????????????????? | | ?????????????????????????????????????????????????? | | ?????????????????????????????????????????????????? | | ???????????????? ?????????????????????????????? | | ??????????????? ?????????????????????????????? | | ??????????????? ?????????????????????????????? | | ???????? ?????# ?????????????????????????????? | | ?????? ???## ?????????????????????????????? | | ?????? #### ?????????????????????????????? | | ?????? #?????????????????????????????? | | ??????? ##????????????????????????????? | | ???????? ##???????????????????????????? | | ?????????? ##??????????????????????????? | | ???????????# ###????????????????????????? | | ???????????# ##???????????????????????? | | ???????????# ##????###???????????????? | | ???????????# ######]##??????????????? | | ????????#### #;!##|!##?????????????? | | ???????## ;!]%[!*#?????????????? | | ???????# =%=]]!!###???????????? | | ???????# #### @ !/*%[%;;#???????????? | | ???????# #??####### ;!== ????? | | ???????## ##???????###### #??? | | ????????## ##### ##????## ;; BB #??? | | #??####?## #?????####" B #??? | | ##?# ### #?????????# #??? | | ### #????????? #??? | | ##????????? #??? | | ###### ###?????????? #??? | | #### ## #?????###????????????? ??? | | #??######### #?????????????????????#### ???? | | ???????????# ##?????????????????????????# ???? | | ???????????####???????????????????????????##?????? | | ?????????????????????????????????????????????????? | | ?????????????????????????????????????????????????? | | ?????????????????????????????????????????????????? | | ?????????????????????????????????????????????????? | | ?????????????????????????????????????????????????? | | ????????????????????????????????????????????????? | | ???????????????????????????????????????????????? | | ??????????????????????????????????????????????? | | ??????????????????????????????????????????????? | | ???????????????????????????????????????????????? | | ?????????????????????????????????????????????????? | | ?????????????????????????????????????????????????? | +----------------------------------------------------+ Best States ------------- Heat Dissipation 56 Coolant Potential 65 Energy Generation 28 Energy Capacity 350 Matter Stores 300 Matter Capacity 300 Sight Range 16 Robot Scan Range 20 Terrain Scan Density 10 ECM Strength 3 Armor Coverage 225 Resistance: EM 15 Weapon Cycling 15 Evasion (%) 63 Recoil Reduction 4 Defensive Hacking 10 Relay Coupler Types 2 Relay Coupler Value 66 Authchip Count 2 Item Schematics ----------------- Imp. Flight Unit | -8/Materials | Hacked Datajack | -8/Materials | Scanalyzed Cooling System | -8/Materials | Scanalyzed Exp. Sensor Array | -8/Materials | Scanalyzed Hyp. Coil Gun | -7/Factory | Hacked Coolant Injector | -7/Factory | Scanalyzed Combat Drone Bay | -7/Data Miner | Free Lgt. Regenerative Plating | -7/Data Miner | Free Biomechanical Wings | -7/Data Miner | Free Gravity Neutralizer | -7/Data Miner | Free Imp. Heavy Machine Gun | -7/Data Miner | Free Nuclear Pulse Array | -7/Data Miner | Free Imp. Transmission Jammer | -7/Data Miner | Free KE Penetrator | -7/Data Miner | Free Imp. Thermal Shield | -7/Data Miner | Free Enh. Gauss Cannon | -7/Data Miner | Free Robot Schematics ------------------ H-55 Commando | -7/Data Miner | Free M-22 Extractor | -7/Data Miner | Free A-15 Conveyor | -7/Data Miner | Free B-60 Warrior | -7/Data Miner | Free Y-64 Sentinel | -7/Data Miner | Free Fabricated ------------ Hyp. Coil Gun | x2 | -7/Factory | Authchip Alien Tech Used ----------------- None Achievements -------------- None Challenges ------------ None Game ------ Seed AuthchipPointyAirjet Manual? 0 Play Time 01:09:38 Cumulative 194.1 hours Start 2024.06.08 @ 01:47:30 End 2024.06.08 @ 02:56:52 Sessions 1 Manual Loads 0 Difficulty Rogue Special Mode None Game No. 172 Rogue 172 Adventurer 0 Explorer 0 Win Type - Total 3 Types 3/0/0/0/0/0/0/0/0 Lore% 54 Gallery% 69 Achievement% 55 Wizard Run 0 Options --------- Layout 0 ASCII 0 Keyboard 0 Movement Numpad Keybinds 0 Fullscreen 2 Font 18/SmallcapsGlow Map View 76x50 Zoom Use 0% Tactical HUD 1 Map Filters NONE Filters NONE Steam 1 RUN: 3487b304-4f73-48a2-aef0-4c1abd8335fa